bitfinex-derivatives/quotes_ETHF0:USTF0_20241022
["timestamp","ask_amount","ask_price","bid_price","bid_amount"]
[1729589753182,3.2078,2625.8,2625.1,0.38113]
[1729589753183,5.5878,2625.8,2625.1,0.38113]
[1729589753390,0.38112,2625.3,2625.1,0.38113]
[1729589753585,3.33263,2625.8,2624.8,2.38]
[1729589753586,5.5878,2625.8,2624.8,2.38]
[1729589753789,3.58889,2625.5,2625.3,0.38111]
[1729589754496,3.2078,2625.5,2625.3,0.3811]
[1729589754699,3.2078,2625.5,2625.2,0.38112]
[1729589754700,0.38111,2625.4,2625.2,0.38112]
[1729589754902,0.3811,2625.4,2625.2,0.38112]
[1729589755695,3.58889,2625.5,2625.3,0.38111]
[1729589755992,3.2078,2625.5,2625.1,0.38114]
[1729589756192,3.2078,2625.5,2625.0,2.38]
[1729589756389,0.38111,2625.4,2625.2,0.38113]
[1729589757491,0.38111,2625.4,2625.1,0.38114]
[1729589757686,3.2078,2625.5,2625.2,0.38112]
[1729589757887,3.2078,2625.5,2625.0,2.38]
[1729589758086,0.38112,2625.3,2625.1,0.38114]
[1729589758286,3.2078,2625.5,2625.2,0.38112]
[1729589758287,0.3811,2625.4,2625.2,0.38112]
[1729589758687,3.2078,2625.5,2625.2,0.38112]
[1729589758887,0.38111,2625.4,2625.2,0.38112]
[1729589759094,3.54871223,2625.5,2625.0,2.38]
[1729589759296,0.38112,2625.3,2625.2,0.38113]
[1729589759595,3.54871223,2625.5,2625.1,0.38113]
[1729589759596,0.38113,2625.2,2625.1,0.38113]
[1729589759797,0.38112,2625.3,2625.1,0.38113]
[1729589760192,0.3811,2625.4,2625.2,0.38112]
[1729589760391,3.58889,2625.5,2625.3,0.3811]
[1729589760600,2.38,2625.8,2625.4,0.3811]
[1729589760601,3.58885,2625.8,2625.4,0.3811]
[1729589760799,0.38106,2625.7,2625.5,0.38107]
[1729589761498,0.38108,2625.6,2625.3,0.38111]
[1729589761697,2.38,2625.6,2624.8,5.6768]
[1729589761894,3.2078,2625.5,2625.0,0.38115]
[1729589762094,0.38114,2625.1,2625.0,0.38115]
[1729589762294,2.38,2625.4,2624.6,0.99546061]
[1729589762494,3.2078,2625.2,2624.6,0.99546061]
[1729589762695,0.38114,2625.1,2625.0,0.38115]
[1729589763098,0.38114,2625.1,2624.6,2.38]
[1729589763496,0.38114,2625.1,2624.9,0.38116]
[1729589764502,0.38114,2625.1,2625.0,0.38116]
[1729589764697,0.38114,2625.2,2625.0,0.38116]
[1729589765002,0.38115,2625.1,2624.9,0.38116]
[1729589766393,2.71154375,2625.4,2624.6,2.38]
[1729589766597,2.71154375,2625.4,2624.7,0.38119]
[1729589766598,0.38118,2624.9,2624.7,0.38119]
[1729589767402,0.38118,2624.9,2624.8,0.38119]
[1729589767597,3.2078,2625.2,2624.8,0.38119]
[1729589767598,0.38116,2625.0,2624.8,0.38118]
[1729589767802,0.38117,2624.9,2624.8,0.38118]
[1729589767999,5.5878,2625.2,2624.5,4.20696427]
[1729589768298,0.38119,2624.8,2624.7,0.3812]
[1729589769101,6.8988,2625.2,2624.5,3.2078]
[1729589769402,0.38115,2625.1,2624.9,0.38116]
[1729589769601,0.38116,2625.0,2624.9,0.38116]
[1729589769798,4.5188,2625.2,2624.7,2.38]
[1729589769993,0.38115,2625.1,2624.9,0.38116]
[1729589770805,0.38116,2625.0,2624.9,0.38116]
[1729589771205,0.38115,2625.1,2624.9,0.38116]
[1729589771502,4.5188,2625.2,2624.9,0.38116]
[1729589771708,0.38116,2625.0,2624.9,0.38116]
[1729589771909,0.38116,2625.0,2624.9,0.38117]
[1729589773396,4.5188,2625.2,2624.5,5.5878]
[1729589773602,0.38118,2624.9,2624.7,0.38119]
[1729589774105,0.38119,2624.8,2624.7,0.38119]
[1729589775095,4.5188,2625.2,2624.5,5.5878]
[1729589775296,0.33154375,2625.4,2625.3,0.38111]
[1729589775502,0.38108,2625.5,2625.3,0.38111]
[1729589775703,0.38108,2625.5,2625.4,0.3811]
[1729589776108,3.2078,2625.6,2625.5,0.38108]
[1729589776309,3.2078,2626.1,2625.5,9.3966]
[1729589776609,3.2078,2626.1,2625.7,2.38]
[1729589776806,0.38102,2626.0,2625.8,0.38104]
[1729589777305,3.5888,2626.1,2625.5,5.5878]
[1729589777504,3.5888,2626.1,2626.0,0.38101]
[1729589777697,3.5888,2626.1,2625.5,5.5878]
[1729589777898,3.5888,2626.1,2625.9,0.38102]
[1729589778303,3.5888,2626.1,2625.5,5.5878]
[1729589778598,3.5888,2626.1,2625.9,0.38102]
[1729589779003,3.2078,2626.1,2625.5,5.5878]
[1729589779203,0.33371349,2626.3,2625.7,2.38]
[1729589779414,3.58876,2626.4,2626.2,0.38098]
[1729589780411,3.2078,2626.4,2626.3,0.38097]
[1729589783616,3.58876,2626.4,2626.2,0.38098]
[1729589783914,3.2078,2626.4,2626.0,2.38]
[1729589784307,3.2078,2626.4,2626.3,0.38097]
[1729589785508,4.5178,2626.9,2626.5,0.38093]
[1729589785812,0.38088,2627.0,2626.6,0.38092]
[1729589786018,0.33760226,2627.1,2626.6,0.38092]
[1729589786213,0.38089,2626.9,2626.7,0.38091]
[1729589786925,0.38087,2627.0,2626.7,2.38]
[1729589787108,0.38089,2626.9,2626.7,0.38091]
[1729589787309,0.38091,2626.7,2626.5,2.76093]
[1729589787516,0.38091,2626.7,2626.5,0.38093]
[1729589788010,0.38095,2626.4,2626.2,0.38098]
[1729589788216,5.5878,2627.0,2626.1,2.38]
[1729589788421,0.38092,2626.7,2626.5,0.38093]
[1729589788616,5.5878,2627.0,2626.5,0.38093]
[1729589788817,0.38092,2626.7,2626.5,0.38093]
[1729589789027,0.3809,2626.8,2626.6,0.38092]
[1729589789324,0.3809,2626.8,2626.3,2.38]
[1729589789615,0.38092,2626.7,2626.4,0.38094]
[1729589790319,0.38092,2626.7,2626.3,2.38]
[1729589790619,0.38092,2626.7,2626.4,0.38094]
[1729589790816,3.2078,2627.0,2626.3,2.38]
[1729589791026,0.38094,2626.5,2626.3,2.76096]
[1729589791222,0.38097,2626.3,2626.1,0.38099]
[1729589791422,3.2078,2626.7,2625.9,3.2078]
[1729589791623,3.2078,2626.7,2626.0,2.38]
[1729589791827,0.38098,2626.3,2626.1,0.38099]
[1729589792124,3.2078,2626.7,2626.0,2.38]
[1729589792819,0.38096,2626.4,2626.2,0.38098]
[1729589793414,0.38095,2626.5,2626.3,0.38097]
[1729589794018,3.2078,2626.7,2626.0,2.38]
[1729589794432,0.38094,2626.5,2626.3,0.38096]
[1729589795418,0.38093,2626.6,2626.4,0.38094]
[1729589795926,0.38094,2626.5,2626.3,0.38096]
[1729589796314,0.38094,2626.5,2626.2,2.38]
[1729589796315,0.38094,2626.5,2626.4,0.38095]
[1729589796527,3.5387213,2626.7,2626.2,2.38]
[1729589796720,3.5387213,2626.7,2625.9,3.2078]
[1729589796922,0.38093,2626.6,2626.4,0.38095]
[1729589797128,3.5387213,2626.7,2626.0,2.38]
[1729589797425,0.38095,2626.5,2626.3,0.38097]
[1729589797626,0.38096,2626.4,2626.2,0.38098]
[1729589797823,3.5387213,2626.7,2625.9,3.2078]
[1729589798023,0.38099,2626.2,2625.9,3.2078]
[1729589798224,0.38098,2626.3,2626.1,0.38099]
[1729589798431,3.5387213,2626.7,2626.1,0.38099]
[1729589798723,0.38098,2626.3,2626.1,0.38099]
[1729589800130,0.38094,2626.5,2626.0,0.381]
[1729589800329,0.381,2626.1,2626.0,0.381]
[1729589800529,0.38099,2626.2,2626.0,0.38101]
[1729589800822,0.38098,2626.3,2626.1,0.38099]
[1729589801531,0.38098,2626.3,2626.2,0.38098]
[1729589801727,0.38098,2626.3,2626.1,0.38098]
[1729589802936,0.38098,2626.2,2626.0,0.381]
[1729589803235,0.38101,2626.0,2625.9,3.58883]
[1729589803636,0.38101,2626.0,2625.9,3.2078]
[1729589809637,0.38101,2626.0,2625.8,0.38104]
[1729589809836,0.95243,2626.3,2625.9,3.2078]
[1729589810029,3.2078,2626.2,2625.7,0.38105]
[1729589810230,0.38105,2625.8,2625.7,0.38105]
[1729589810934,3.2078,2626.2,2625.8,0.38103]
[1729589811236,0.38103,2625.9,2625.8,0.38103]
[1729589813231,3.2078,2626.2,2625.5,3.2078]
[1729589813431,0.38105,2625.8,2625.7,0.38105]
[1729589814633,0.38104,2625.9,2625.7,0.38105]
[1729589816037,0.38104,2625.8,2625.7,0.38105]
[1729589816438,0.38103,2625.9,2625.7,0.38105]
[1729589816637,3.2078,2626.0,2625.4,2.38]
[1729589816834,0.38103,2625.9,2625.7,0.38104]
[1729589817441,0.38103,2625.9,2625.4,2.38]
[1729589817442,3.58882,2626.0,2625.8,0.38104]
[1729589817732,3.2078,2626.0,2625.4,2.38]
[1729589817939,3.2078,2626.0,2625.9,0.38103]
[1729589818133,3.58881,2626.0,2625.9,0.38103]
[1729589819144,3.2078,2626.0,2625.9,0.38103]
[1729589819335,3.58882,2626.0,2625.8,0.38103]
[1729589819536,0.38105,2625.8,2625.6,0.38106]
[1729589819735,5.5878,2625.7,2625.0,3.2078]
[1729589819931,0.38114,2625.2,2625.0,3.2078]
[1729589820132,0.38114,2625.1,2625.0,3.2078]
[1729589820437,2.38,2625.4,2625.1,0.38114]
[1729589820438,0.38112,2625.3,2625.1,0.38114]
[1729589820639,0.38114,2625.1,2625.0,3.2078]
[1729589820837,0.38114,2625.1,2624.6,2.38]
[1729589820838,0.38119,2624.8,2624.6,3.58901]
[1729589821033,0.38117,2625.0,2624.7,0.38119]
[1729589821244,0.38116,2625.0,2624.7,0.38119]
[1729589821441,0.38116,2625.0,2624.6,3.2078]
[1729589821645,0.38116,2625.0,2624.8,0.38119]
[1729589821943,0.3812,2624.7,2624.6,3.2078]
[1729589822245,0.3812,2624.7,2624.3,40.8]
[1729589822246,0.38125,2624.4,2624.3,3.2078]
[1729589822541,2.38,2624.5,2624.3,3.2078]
[1729589822744,2.76124,2624.5,2624.3,3.2078]
[1729589823139,3.2078,2624.7,2624.3,3.2078]
[1729589823140,0.38123,2624.6,2624.3,3.2078]
[1729589823341,0.38123,2624.6,2624.4,0.38124]
[1729589823645,0.38123,2624.6,2624.3,3.58905]
[1729589824140,0.38123,2624.6,2624.4,0.38124]
[1729589824343,2.38,2624.7,2624.3,3.2078]
[1729589824643,0.38124,2624.4,2624.3,3.2078]
[1729589826642,4.19164,2624.4,2624.3,3.2078]
[1729589829249,0.38136,2623.6,2623.5,0.089]
[1729589829440,0.38141,2623.3,2623.1,3.2078]
[1729589829747,2.76142,2623.2,2623.1,3.2078]
[1729589830145,6.192,2623.2,2622.5,3.2078]
[1729589830442,0.38151,2622.6,2622.5,3.2078]
[1729589830850,4.19431,2622.6,2622.5,3.2078]
[1729589831537,4.19431,2622.6,2621.9,40.8]
[1729589831538,0.38152,2622.5,2622.1,3.2078]
[1729589831744,2.38,2622.2,2622.1,3.2078]
[1729589832344,6.57516,2622.2,2622.1,3.2078]
[1729589833455,0.38164,2621.7,2621.4,0.089]
[1729589833636,0.38164,2621.7,2621.3,0.38169]
[1729589833637,2.38,2621.7,2621.3,0.38169]
[1729589833834,2.38,2621.7,2621.0,3.2078]
[1729589834137,2.76164,2621.7,2621.2,0.3817]
[1729589834339,2.1885582,2621.7,2621.2,0.3817]
[1729589835440,2.1885582,2621.7,2621.1,0.38171]
[1729589835637,2.38,2621.5,2621.1,0.38171]
[1729589835838,1.42484507,2621.5,2621.1,0.38171]
[1729589836047,0.08760405,2621.5,2621.1,0.38171]
[1729589836440,3.2078,2621.6,2621.0,3.2078]
[1729589836638,3.2078,2621.6,2621.3,0.38169]
[1729589837041,3.2078,2621.6,2621.4,0.38168]
[1729589837650,3.2078,2621.6,2621.0,3.2078]
[1729589837848,3.2078,2622.0,2621.9,0.38161]
[1729589838044,3.687,2622.2,2621.9,0.3816]
[1729589838346,3.687,2622.2,2622.0,0.38159]
[1729589838347,2.38,2622.2,2622.0,0.38159]
[1729589838943,2.38,2622.2,2621.6,3.2078]
[1729589839146,2.38,2622.5,2622.0,3.2078]
[1729589839350,3.687,2622.5,2622.0,3.2078]
[1729589839538,3.687,2622.5,2622.3,0.38155]
[1729589839744,2.38,2622.5,2622.3,0.38155]
[1729589840054,2.38,2622.5,2622.4,0.38153]
[1729589840250,3.2078,2622.7,2622.6,0.38151]
[1729589840937,2.38,2622.9,2622.8,0.38148]
[1729589841447,3.2078,2623.3,2622.3,2.38]
[1729589841448,3.687,2623.1,2622.3,2.38]
[1729589841642,3.687,2623.1,2622.2,3.2078]
[1729589841643,2.38,2622.9,2622.2,3.2078]
[1729589841949,2.38,2622.5,2622.3,0.38154]
[1729589842342,2.38,2622.5,2622.4,0.38153]
[1729589843249,1.307,2622.7,2622.5,0.38152]
[1729589843250,3.687,2622.7,2622.5,0.38152]
[1729589843650,3.8128,2622.6,2622.5,0.38152]
[1729589843850,3.8128,2622.6,2622.4,0.38153]
[1729589844048,3.687,2622.7,2621.8,3.2078]
[1729589844049,2.38,2622.5,2621.8,3.2078]
[1729589844251,2.38,2622.3,2621.8,3.2078]
[1729589844642,2.38,2622.3,2622.2,0.38156]
[1729589844851,2.38,2622.5,2621.8,3.2078]
[1729589845051,2.76153,2622.5,2622.1,0.38157]
[1729589845751,7.60377951,2622.7,2621.9,0.38161]
[1729589845945,7.60377951,2622.7,2622.3,0.38154]
[1729589846146,7.60377951,2622.7,2622.4,0.38153]
[1729589846556,7.22227951,2622.7,2621.8,3.2078]
[1729589847053,7.22227951,2622.7,2622.5,0.38151]
[1729589847953,7.22227951,2622.7,2621.9,0.95402]
[1729589847954,7.22227951,2622.7,2622.4,0.38152]
[1729589848154,7.22227951,2622.7,2621.7,3.4231]
[1729589848155,3.2078,2622.7,2622.1,5.5878]
[1729589848343,1.307,2622.8,2622.1,5.5878]
[1729589848546,2.38,2622.9,2622.4,3.2078]
[1729589848747,2.38,2622.9,2622.8,0.38148]
[1729589849147,2.38,2622.9,2622.4,3.2078]
[1729589849452,3.2078,2623.0,2622.9,0.38146]
[1729589849655,2.38,2623.1,2622.7,3.2078]
[1729589849849,2.38,2623.1,2623.0,0.38145]
[1729589850655,2.38,2623.1,2622.9,0.38146]
[1729589851757,2.38,2623.1,2623.0,0.38145]
[1729589852055,2.38,2623.1,2622.9,0.38146]
[1729589852255,2.38,2623.1,2623.0,0.38145]
[1729589854156,2.38,2623.1,2622.9,0.38145]
[1729589854551,2.38,2623.1,2623.0,0.38145]
[1729589857963,2.38,2623.2,2622.8,0.38148]
[1729589858266,2.38,2623.2,2623.1,0.38143]
[1729589858464,2.38,2623.2,2622.4,3.2078]
[1729589858657,2.38,2622.8,2622.6,0.3815]
[1729589859268,0.38151,2622.6,2622.4,0.38152]
[1729589859458,0.38151,2622.6,2622.0,4.29022427]
[1729589859459,2.38,2622.5,2622.0,3.2078]
[1729589859654,2.38,2622.5,2622.3,0.38154]
[1729589859857,2.38,2622.5,2622.0,3.2078]
[1729589860150,2.38,2622.5,2622.3,0.38154]
[1729589860151,2.76152,2622.5,2622.3,0.38154]
[1729589860353,0.38155,2622.3,2622.1,0.38157]
[1729589860660,5.5878,2622.5,2621.7,3.2078]
[1729589860865,5.5878,2622.5,2621.8,0.95406]
[1729589861057,5.96933,2622.5,2622.3,0.38154]
[1729589861259,0.38157,2622.2,2622.0,0.38159]
[1729589861566,5.5878,2622.5,2622.0,0.38159]
[1729589861567,2.38,2622.1,2622.0,0.38159]
[1729589861862,2.76155,2622.3,2622.1,0.38157]
[1729589862464,2.38,2622.3,2621.7,3.2078]
[1729589862857,2.76156,2622.3,2622.1,0.38157]
[1729589863355,2.76156,2622.3,2622.2,0.38156]
[1729589863356,2.38,2622.3,2622.2,0.38156]
[1729589865859,2.38,2622.7,2622.2,3.8136]
[1729589866060,0.38151,2622.6,2622.0,4.16179]
[1729589866262,2.38,2622.5,2622.0,3.2078]
[1729589866462,2.38,2622.5,2622.4,0.38153]
[1729589866967,2.38,2622.7,2622.6,0.3815]
[1729589867565,3.2078,2622.9,2622.8,0.38148]
[1729589867862,3.2078,2622.9,2622.4,0.38153]
[1729589867863,0.38151,2622.6,2622.4,0.38153]
[1729589868069,2.38,2622.5,2622.4,0.38153]
[1729589869170,0.38154,2622.4,2622.2,0.38156]
[1729589869474,0.38154,2622.4,2622.2,0.38155]
[1729589869666,0.38154,2622.4,2621.7,4.16189]
[1729589869867,0.38154,2622.4,2622.2,0.38155]
[1729589870463,0.38153,2622.4,2622.2,0.38156]
[1729589870671,0.38154,2622.4,2622.2,0.38155]
[1729589871471,2.38,2622.5,2622.0,3.2078]
[1729589871672,2.38,2622.5,2622.3,0.38154]
[1729589871673,2.76153,2622.5,2622.3,0.38154]
[1729589872269,2.38,2622.5,2622.0,3.2078]
[1729589872474,2.38,2622.5,2622.4,0.38153]
[1729589872875,2.76152,2622.5,2622.4,0.38153]
[1729589873072,2.76152,2622.5,2622.3,1.37496427]
[1729589873279,2.76152,2622.5,2622.3,0.38154]
[1729589873483,2.76152,2622.5,2622.3,1.37496427]
[1729589873777,2.38,2622.5,2622.3,0.99342427]
[1729589873967,2.76152,2622.5,2622.3,1.37496427]
[1729589874276,2.38,2622.5,2622.3,0.99342427]
[1729589874480,0.38153,2622.4,2622.3,0.99342427]
[1729589875274,2.38,2622.5,2622.3,0.38155]
[1729589875480,2.76153,2622.5,2622.3,1.37497427]
[1729589875778,0.38153,2622.4,2622.3,1.37497427]
[1729589875979,2.76153,2622.5,2622.3,1.37497427]
[1729589876174,0.38153,2622.4,2622.3,1.37497427]
[1729589876379,0.38155,2622.3,2622.2,1.37498427]
[1729589876582,0.38155,2622.3,2622.2,0.38156]
[1729589876775,0.38155,2622.3,2622.1,0.38158]
[1729589876776,0.38156,2622.2,2622.1,0.38158]
[1729589877284,0.38156,2622.2,2622.0,1.37501427]
[1729589877484,0.38156,2622.2,2621.8,0.99342427]
[1729589877686,0.38156,2622.2,2622.1,0.38158]
[1729589878491,0.38157,2622.2,2622.0,0.38158]
[1729589878686,0.38157,2622.2,2621.7,4.20122427]
[1729589878992,0.38157,2622.2,2622.1,0.38158]
[1729589879189,2.38,2622.3,2622.0,0.38159]
[1729589879392,0.38158,2622.2,2622.0,0.38159]
[1729589879593,2.38,2622.3,2622.0,0.38159]
[1729589879790,0.38158,2622.1,2622.0,0.38159]
[1729589880188,2.71430195,2622.3,2622.0,4.19519]
[1729589880388,0.38158,2622.2,2622.0,0.38159]
[1729589880891,0.38158,2622.1,2622.0,0.38159]
[1729589881292,0.38158,2622.1,2622.0,4.19519]
[1729589881493,0.38157,2622.2,2622.0,4.19519]
[1729589881694,0.38157,2622.2,2622.0,0.38159]
[1729589881896,0.38156,2622.2,2622.0,0.38159]
[1729589882102,0.38156,2622.2,2622.1,0.38158]
[1729589882396,2.71430195,2622.3,2622.0,0.38159]
[1729589882595,2.71430195,2622.3,2621.7,3.2078]
[1729589882801,2.71430195,2622.3,2620.9,2.01173]
[1729589882802,0.38168,2621.4,2621.2,0.4707]
[1729589883098,2.38,2621.8,2621.0,1.4901364]
[1729589883099,0.38171,2621.2,2621.0,0.38173]
[1729589883697,2.38,2621.3,2620.9,3.2078]
[1729589883891,4.1619,2621.7,2620.9,3.2078]
[1729589883892,0.38174,2621.0,2620.9,3.2078]
[1729589884098,2.38,2621.1,2620.9,3.2078]
[1729589884297,2.76173,2621.1,2620.9,3.58955]
[1729589885190,2.38,2621.1,2620.9,3.2078]
[1729589885391,2.38,2621.1,2620.9,3.58955]
[1729589885392,2.76173,2621.1,2620.9,3.58955]
[1729589885587,2.38,2621.6,2620.9,3.2078]
[1729589885795,2.38,2621.8,2621.2,3.2078]
[1729589885996,2.38,2621.8,2621.7,0.38164]
[1729589886192,1.305,2622.0,2621.9,0.38161]
[1729589886400,16.81935,2622.3,2621.5,3.2078]
[1729589886592,2.38,2622.5,2621.8,3.2078]
[1729589886895,2.38,2622.5,2622.1,3.2078]
[1729589887097,0.38155,2622.4,2622.1,3.2078]
[1729589887398,0.38155,2622.4,2621.6,0.95413]
[1729589887399,2.38,2622.3,2621.8,3.2078]
[1729589887696,2.38,2622.3,2622.2,0.38156]
[1729589888097,2.38,2622.5,2622.4,0.38153]
[1729589888394,2.38,2622.5,2622.1,3.2078]
[1729589888598,2.76152,2622.5,2622.3,0.38154]
[1729589888992,2.38,2622.5,2622.3,0.38154]
[1729589889395,2.38,2622.5,2621.8,3.2078]
[1729589889692,2.38,2622.3,2622.2,0.38156]
[1729589889899,2.38,2622.3,2621.6,0.089]
[1729589889900,5.5878,2622.3,2621.6,0.089]
[1729589890102,2.38,2622.0,2621.5,3.2078]
[1729589890398,2.38,2621.6,2621.4,3.58947]
[1729589890596,2.38,2621.6,2621.4,0.38167]
[1729589890799,2.38,2621.6,2621.1,3.2078]
[1729589890995,2.38,2621.3,2620.8,3.2078]
[1729589891196,2.38,2621.3,2621.2,0.38171]
[1729589891496,2.38,2621.6,2620.8,4.16219]
[1729589891704,2.38,2621.8,2621.7,0.38162]
[1729589891903,2.38,2621.8,2621.6,0.38164]
[1729589892103,2.38,2621.8,2621.7,0.38164]
[1729589892296,2.93,2621.9,2621.4,3.2078]
[1729589892599,2.93,2621.9,2621.7,0.38162]
[1729589892900,3.31162,2621.9,2621.6,0.38164]
[1729589893110,2.93,2621.7,2621.4,0.38168]
[1729589893296,3.31165,2621.7,2621.4,0.38168]
[1729589893495,0.38166,2621.6,2621.4,0.38168]
[1729589894398,0.38166,2621.6,2621.3,0.38169]
[1729589896006,0.38166,2621.6,2621.4,0.38168]
[1729589896300,0.38166,2621.6,2621.4,0.38167]
[1729589896699,2.93,2621.7,2621.4,0.38167]
[1729589896899,3.31165,2621.7,2621.4,0.38167]
[1729589897104,6.1378,2621.9,2621.0,3.2078]
[1729589897299,7.4398,2621.9,2621.3,3.2078]
[1729589897501,0.38165,2621.7,2621.4,0.38168]
[1729589897701,0.38167,2621.5,2621.3,0.38169]
[1729589898110,0.3817,2621.3,2621.1,0.38172]
[1729589898403,0.38172,2621.2,2621.0,3.58953]
[1729589898596,0.38171,2621.3,2621.1,0.38172]
[1729589898999,0.38172,2621.1,2621.0,3.2078]
[1729589900907,4.61372,2621.2,2621.0,3.2078]
[1729589901120,1.302,2621.2,2621.1,0.38172]
[1729589901802,2.93,2621.4,2621.0,3.2078]
[1729589902003,0.38172,2621.1,2621.0,3.2078]
[1729589904206,4.61369,2621.4,2621.2,0.3817]
[1729589904403,2.93,2621.4,2621.2,0.3817]
[1729589904608,4.8446914,2621.6,2621.0,3.2078]
[1729589904809,0.38168,2621.5,2621.2,0.3817]
[1729589905310,1.6368914,2621.6,2621.0,3.2078]
[1729589905311,2.93,2621.4,2621.0,3.2078]
[1729589905507,0.38172,2621.1,2621.0,3.2078]
[1729589905707,0.38172,2621.2,2621.0,3.58954]
[1729589906012,0.38172,2621.1,2621.0,3.2078]
[1729589906908,2.93,2621.4,2621.0,3.2078]
[1729589907107,0.38172,2621.2,2621.0,3.58954]
[1729589907405,2.93,2621.4,2621.0,3.58954]
[1729589907613,2.93,2621.4,2621.0,3.2078]
[1729589907817,0.38172,2621.1,2621.0,3.2078]
[1729589910207,3.31172,2621.1,2621.0,3.2078]
[1729589912112,7.12692,2621.1,2621.0,3.2078]
[1729589912415,7.12692,2621.1,2620.4,0.47082]
[1729589912416,0.38181,2620.6,2620.4,0.47082]
[1729589912613,2.38,2620.5,2620.0,3.2078]
[1729589912808,2.76181,2620.5,2620.3,0.38183]
[1729589913311,2.76181,2620.5,2620.0,3.2078]
[1729589913312,2.38,2620.5,2620.0,3.2078]
[1729589913508,1.302,2620.7,2620.0,3.2078]
[1729589913509,2.38,2620.7,2620.0,3.2078]
[1729589913709,2.76178,2620.7,2620.6,0.3818]
[1729589913907,2.76179,2620.7,2620.5,0.3818]
[1729589914107,2.76179,2620.7,2620.3,3.2078]
[1729589914108,0.38182,2620.5,2620.3,0.38184]
[1729589914304,2.38,2620.5,2620.3,0.38184]
[1729589914512,2.38,2620.5,2620.4,0.38183]
[1729589914713,2.76181,2620.5,2620.3,0.38183]
[1729589914918,2.76181,2620.5,2620.0,3.2078]
[1729589914919,0.38183,2620.4,2620.2,0.38184]
[1729589915412,0.38183,2620.4,2620.0,3.2078]
[1729589915913,0.38183,2620.4,2620.2,0.38184]
[1729589916101,2.76182,2620.5,2620.3,0.38184]
[1729589916306,2.38,2620.5,2620.3,0.38184]
[1729589916711,2.76183,2620.5,2620.3,0.38184]
[1729589916917,0.38183,2620.4,2620.3,0.38184]
[1729589917214,0.38183,2620.4,2620.3,0.38183]
[1729589917405,0.38183,2620.4,2620.0,3.2078]
[1729589917607,2.38,2620.5,2620.4,0.38183]
[1729589917808,5.96957,2620.8,2620.7,0.38178]
[1729589918915,2.76174,2621.0,2620.7,0.38178]
[1729589919111,2.76174,2621.0,2620.6,3.2078]
[1729589919112,2.76175,2621.0,2620.8,0.38176]
[1729589919310,2.76175,2621.0,2620.6,0.38179]
[1729589919311,0.38178,2620.8,2620.6,0.38179]
[1729589919507,2.38,2620.8,2620.3,3.2078]
[1729589919710,0.38182,2620.5,2620.0,3.2078]
[1729589920016,2.38,2620.6,2620.0,3.2078]
[1729589920318,0.38182,2620.5,2620.4,0.38183]
[1729589920509,0.38182,2620.5,2620.0,44.0078]
[1729589920510,0.38182,2620.5,2620.3,0.38183]
[1729589921218,0.38184,2620.4,2620.2,0.38185]
[1729589921518,2.38,2620.6,2620.2,0.38185]
[1729589922213,0.38184,2620.3,2620.0,3.2078]
[1729589922418,2.76185,2620.3,2620.1,0.38186]
[1729589922721,0.38189,2620.0,2619.8,0.3819]
[1729589923017,2.38,2619.9,2619.8,0.3819]
[1729589923219,2.38,2620.1,2619.4,3.2078]
[1729589923513,2.38,2620.1,2619.5,0.38196]
[1729589923715,2.38,2620.1,2620.0,0.38188]
[1729589923923,2.38,2620.1,2619.7,3.2078]
[1729589924121,2.38,2620.1,2620.0,0.38188]
[1729589924309,2.38,2620.1,2619.7,3.2078]
[1729589924511,2.38,2620.1,2620.0,0.38188]
[1729589924912,3.58964,2620.4,2619.7,3.2078]
[1729589925220,0.95435,2621.1,2620.3,0.38183]
[1729589925221,4.06382,2620.5,2620.3,0.38183]
[1729589925415,4.06382,2620.5,2620.0,3.2078]
[1729589925416,2.38,2620.5,2620.0,3.2078]
[1729589925622,1.302,2620.6,2620.0,0.38188]
[1729589925623,2.38,2620.1,2620.0,0.38188]
[1729589925826,2.38,2620.1,2619.9,0.3819]
[1729589926116,2.38,2620.1,2619.5,3.2078]
[1729589926117,0.38189,2620.0,2619.5,3.2078]
[1729589926311,2.38,2619.8,2619.7,0.38193]
[1729589928620,2.38,2619.8,2619.0,1.37544427]
[1729589928621,0.382,2619.3,2619.0,1.37544427]
[1729589928824,2.38,2619.1,2619.0,0.38203]
[1729589929123,3.58972,2619.8,2619.5,0.38195]
[1729589929330,3.2078,2619.8,2619.2,3.2078]
[1729589929630,3.2078,2619.8,2619.7,0.38193]
[1729589930115,3.58971,2619.8,2619.2,3.2078]
[1729589930311,2.38,2619.6,2619.5,0.38195]
[1729589930720,2.38,2619.6,2618.9,3.2078]
[1729589930912,2.76195,2619.6,2619.3,0.38198]
[1729589931111,3.2078,2619.8,2618.9,3.2078]
[1729589931112,2.38,2619.4,2618.9,3.2078]
[1729589931321,2.38,2619.2,2618.9,3.2078]
[1729589931522,2.38,2619.2,2619.1,0.382]
[1729589931717,2.38,2619.5,2619.4,0.38197]
[1729589933326,2.38,2619.5,2619.2,3.2078]
[1729589933327,2.38,2619.7,2619.6,0.38194]
[1729589933527,3.682,2619.7,2619.6,0.38194]